Cogmind - Beta 13 @@@ ROGUE MODE // 2024.04.29 @ 21:38:21 Player: Analote Result: Destroyed by S-43 Plague with Heavy Machine Gun Performance ------------- Evolutions (7) 3500 Regions Visited (11) 2200 Robots Destroyed (27) 135 Value Destroyed (882) 882 Prototype IDs (13) 260 Alien Tech Used (0) 0 Bonus (0) 0 TOTAL SCORE: 6977 Bonus ------- None Cogmind --------- Core Integrity 0/1300 Matter 11/300 Energy 100/100 System Corruption 0% Temperature Cool (0) Movement Core (50) Location -3/Research Parts ------- > --- POWER (4) -------- (None) > --- PROPULSION (7) --- (None) > --- UTILITY (6) ------ (None) > --- WEAPON (4) ------- (None) > --- INVENTORY (5) ---- Nuclear Core Q-thruster Electron Diverter Slug Cannon Peak State ------------ > --- POWER ------------ Light Antimatter Reactor > --- PROPULSION ------- Field Propulsion Array Flightbrick > --- UTILITY ---------- Small Storage Unit Improved Transmission Jammer Advanced ECM Suite > --- WEAPON ----------- Tesla Rifle Light Antimatter Cannon > --- INVENTORY -------- Nuclear Core Light Angular Momentum Engine Minigun Slug Cannon [Rating: 83] Favorites ----------- Power Ion Engine Engine Ion Engine Power Core Nuclear Core Reactor Light Antimatter Reactor Propulsion Light Treads Treads Light Treads Flight Unit Flightbrick Utility Small Storage Unit Device Advanced ECM Suite Storage Small Storage Unit Protection Scrap Shield Weapon Heavy EM Pulse Gun Energy Gun Heavy EM Pulse Gun Ballistic Gun Barrage Gun Ballistic Cannon Slug Cannon Launcher Rocket Array Build | -11 -10 -10 -8 -7 -6 -6 -5 -4 -4 -4 -3 ------- Run | Yrd Mat Sub Mat Fac Fac Ext Fac Fac Upp Upp Res Slots Evolved 14 | . . . 4 2 2 . 2 2 . . 2 Power 3 | . . . 2 . 1 . . . . . . Propulsion 5 | . . . 2 1 . . 1 1 . . . Utility 4 | . . . . 1 1 . 1 . . . 1 Weapon 2 | . . . . . . . . 1 . . 1 Parts Attached 43 | 6 4 1 14 5 2 1 4 3 . . 3 Power 13 | 1 . . 5 1 2 . 2 1 . . 1 Engine 9 | 1 . . 4 1 . . 2 . . . 1 Core 3 | . . . 1 . 2 . . . . . . Reactor 1 | . . . . . . . . 1 . . . Propulsion 5 | 2 . . 1 1 . . . 1 . . . Treads 2 | 2 . . . . . . . . . . . Leg . | . . . . . . . . . . . . Wheel . | . . . . . . . . . . . . Hover . | . . . . . . . . . . . . Flight 3 | . . . 1 1 . . . 1 . . . Utility 7 | 1 1 . 2 2 . . 1 . . . . Device 3 | . 1 . . 1 . . 1 . . . . Storage 1 | 1 . . . . . . . . . . . Processor . | . . . . . . . . . . . . Hackware . | . . . . . . . . . . . . Protection 3 | . . . 2 1 . . . . . . . Artifact . | . . . . . . . . . . . . Weapon 18 | 2 3 1 6 1 . 1 1 1 . . 2 Energy Gun 4 | . 2 . . . . 1 . . . . 1 Energy Cannon . | . . . . . . . . . . . . Ballistic Gun 8 | 2 1 1 2 . . . 1 . . . 1 Ballistic Cannon 4 | . . . 3 . . . . 1 . . . Launcher 2 | . . . 1 1 . . . . . . . Special Weapon . | . . . . . . . . . . . . Impact Weapon . | . . . . . . . . . . . . Slashing Weapon . | . . . . . . . . . . . . Piercing Weapon . | . . . . . . . . . . . . Special Melee Weapon . | . . . . . . . . . . . . Unidentified Prototypes 3 | . . . 1 1 . . . 1 . . . Parts Lost 11 | . . . 2 1 3 2 . . . . 3 Power 6 | . . . 1 1 2 1 . . . . 1 Propulsion 1 | . . . . . . . . . . . 1 Utility 2 | . . . 1 . 1 . . . . . . Weapon 2 | . . . . . . 1 . . . . 1 Highest Loss Streak 3 | . . . 1 1 3 2 . . . . 2 To Critical Strikes 1 | . . . 1 . . . . . . . . Average Slot Usage (%) 61 | . 99 89 51 54 49 40 27 31 35 35 8 Engine 10 | . 14 14 13 17 7 . 4 1 . . . Core 1 | . . . 5 . 8 9 1 . . . . Treads 11 | . 28 28 . . . . . . . . . Flight 5 | . . . 6 14 12 12 5 6 10 10 1 Device 5 | . 13 3 . 3 6 6 5 10 10 10 1 Storage 9 | . 14 14 7 7 6 6 5 5 5 5 . Protection 1 | . . . 4 3 3 . . . . . . Energy Gun 8 | . 24 19 . . . 6 . . . . . Ballistic Gun 3 | . 3 8 5 . . . 3 . . . . Ballistic Cannon 2 | . . . 6 7 4 . . 4 5 5 . Naked Turns 57 | . . . . . . . . . . . 57 Heaviest Build 48 | 13 18 18 48 28 34 26 23 26 26 26 31 Greatest Support 40 | 40 40 40 24 29 29 29 24 39 39 39 39 Greatest Overweight (x) 3 | 1 . . 1 . 1 . . 1 . . 3 Average Overweight (x) . | . . . . . . . . . . . . Largest Inventory Capacity 8 | 8 8 8 8 8 8 8 8 8 8 8 8 Average Capacity 7 | 7 8 8 8 8 8 8 8 8 8 8 5 Most Carried 8 | 4 3 8 8 6 6 5 4 6 4 4 5 Average Carried 3 | 1 2 6 2 3 4 4 2 3 4 4 3 Final Capacity 8 | 8 8 8 8 8 8 8 8 8 8 8 5 Final Carried 8 | 1 3 8 3 5 5 4 3 4 4 4 4 Class Distribution -------------------- 88% | Mutant 11% | Infiltrator-Mutant Dominant Class ---------------- Mutant | -10/Materials Mutant | -10/Subcaves Mutant | -8/Materials Mutant | -7/Factory Mutant | -6/Factory Mutant | -6/Extension Mutant | -5/Factory Infiltrator-Mutant | -4/Factory Infiltrator-Mutant | -4/Upper Caves Infiltrator-Mutant | -4/Upper Caves Mutant | -3/Research Resources | -11 -10 -10 -8 -7 -6 -6 -5 -4 -4 -4 -3 ----------- Run | Yrd Mat Sub Mat Fac Fac Ext Fac Fac Upp Upp Res Matter Collected 1155 | 260 45 24 266 285 . . 148 106 21 . . Remotely . | . . . . . . . . . . . . Salvage Created 783 | . 45 94 288 51 . . 214 91 . . . Parts 58 | . 3 2 32 6 . . 10 5 . . . Haulers Intercepted . | . . . . . . . . . . . . Recyclers Shooed . | . . . . . . . . . . . . Parts Field Recycled . | . . . . . . . . . . . . Retrieved Matter . | . . . . . . . . . . . . Parts Self-Destructed . | . . . . . . . . . . . . Prevented 2 | . . 2 . . . . . . . . . Kills | -11 -10 -10 -8 -7 -6 -6 -5 -4 -4 -4 -3 ------- Run | Yrd Mat Sub Mat Fac Fac Ext Fac Fac Upp Upp Res Combat Hostiles Destroyed 20 | . 1 2 10 1 . . 3 3 . . . Guns 8 | . 1 1 3 . . . 3 . . . . Cannons 11 | . . . 7 1 . . . 3 . . . AOE 1 | . . 1 . . . . . . . . . Classes Destroyed 6 | . 1 . 5 . . . . . . . . Worker 2 | . . . 1 . . . . 1 . . . Operator 2 | . . . 1 1 . . . . . . . Watcher 3 | . . . 2 . . . . 1 . . . Swarmer 7 | . . . 7 . . . . . . . . Grunt 7 | . 1 2 . . . . 2 2 . . . Sentry 6 | . . . 3 1 . . 1 1 . . . Best Kill Streak 4 | . 1 2 4 1 . . 1 3 . . . Combat Bots Only 4 | . 1 2 4 1 . . 1 1 . . . Max Kills in Single Turn 1 | . 1 1 1 1 . . 1 1 . . . Gunslinging . | . . . . . . . . . . . . Exploded 1 | . . 1 . . . . . . . . . Melee . | . . . . . . . . . . . . Uniques/NPCs Destroyed . | . . . . . . . . . . . . Combat | -11 -10 -10 -8 -7 -6 -6 -5 -4 -4 -4 -3 -------- Run | Yrd Mat Sub Mat Fac Fac Ext Fac Fac Upp Upp Res Hostile Shots Fired 526 | . 1 15 71 90 42 79 26 38 33 . 131 Missed 236 | . 1 7 23 45 18 47 14 15 22 . 44 Damage Taken 4664 | . . 89 616 318 533 505 400 509 163 . 1531 Core 1568 | . . 20 29 10 43 83 18 26 22 . 1317 Absorbed by Shields . | . . . . . . . . . . . . Redirected to Shielding 116 | . . . . 78 38 . . . . . . Core Remaining (%) 94 | 100 . 92 94 98 . 85 98 . . 95 . Volleys Fired 139 | . 2 19 38 22 1 . 26 26 3 . 2 Largest 2 | . 2 2 2 1 1 . 1 1 1 . 2 Hottest 125 | . 65 90 76 48 48 . 25 60 60 . 125 Shots Fired 196 | . 4 38 72 22 1 . 26 26 3 . 4 Gun 104 | . 4 38 34 . . . 26 . . . 2 Cannon 92 | . . . 38 22 1 . . 26 3 . 2 Launcher . | . . . . . . . . . . . . Special . | . . . . . . . . . . . . Kinetic 164 | . 2 10 72 22 1 . 26 26 3 . 2 Thermal . | . . . . . . . . . . . . Explosive . | . . . . . . . . . . . . Electromagnetic 32 | . 2 28 . . . . . . . . 2 Robot Hit Streak 14 | . 2 7 3 4 . . 9 14 1 . 1 Robot Miss Streak 9 | . 1 4 9 3 1 . 3 1 1 . 3 Penetration Max . | . . . . . . . . . . . . Secondary Targets . | . . . . . . . . . . . . Shots Hit Robots 91 | . 2 9 23 13 . . 18 24 1 . 1 Core Hits 45 | . 1 2 14 6 . . 11 10 . . 1 Critical Kills 3 | . . . 3 . . . . . . . . Critical Parts Destroyed 1 | . . . . 1 . . . . . . . Critical Strikes 6 | . . . 3 2 . . . 1 . . . Destroy 5 | . . . 3 2 . . . . . . . Blast 1 | . . . . . . . . 1 . . . Melee Attacks . | . . . . . . . . . . . . Impact . | . . . . . . . . . . . . Slashing . | . . . . . . . . . . . . Piercing . | . . . . . . . . . . . . Sneak Attacks . | . . . . . . . . . . . . Combat Hostiles . | . . . . . . . . . . . . Follow-up Attacks . | . . . . . . . . . . . . Damage Inflicted 2554 | . 28 240 608 405 . . 316 909 25 . 23 Guns 754 | . 28 143 244 . . . 316 . . . 23 Cannons 1703 | . . . 364 405 . . . 909 25 . . Explosions 97 | . . 97 . . . . . . . . . Melee . | . . . . . . . . . . . . Ramming . | . . . . . . . . . . . . Kinetic 2275 | . 12 . 608 405 . . 316 909 25 . . Thermal 97 | . . 97 . . . . . . . . . Explosive . | . . . . . . . . . . . . Electromagnetic 182 | . 16 143 . . . . . . . . 23 Impact . | . . . . . . . . . . . . Slashing . | . . . . . . . . . . . . Piercing . | . . . . . . . . . . . . Highest Corruption 1 | . . . . . 1 1 . . . . . Average Corruption 1 | . . . . . 1 1 . . . . . Corruption Purged . | . . . . . . . . . . . . Corruption Blocked . | . . . . . . . . . . . . Effects 1 | . . . . . . 1 . . . . . Parts Rejected 1 | . . . . . . 1 . . . . . Overload Shots . | . . . . . . . . . . . . Overflow Damage 23 | . . . . . . . . 23 . . . Projectiles 23 | . . . . . . . . 23 . . . Explosions . | . . . . . . . . . . . . Melee . | . . . . . . . . . . . . Knockbacks 2 | . . . 1 . . . . . 1 . . Impact . | . . . . . . . . . . . . Kinetic 2 | . . . 1 . . . . . 1 . . Secondary . | . . . . . . . . . . . . Self-Inflicted Damage . | . . . . . . . . . . . . Shots . | . . . . . . . . . . . . Rammed . | . . . . . . . . . . . . Targets Rammed . | . . . . . . . . . . . . Kicked . | . . . . . . . . . . . . Crushed . | . . . . . . . . . . . . Highest Temperature 403 | . 6 . 403 173 12 12 5 89 22 . 50 Average Temperature 100 | . 3 . 134 62 8 8 2 40 12 . 28 Received Heat Transfer 636 | . . 51 180 84 . 84 63 132 24 . 18 Effects 4 | . . . 4 . . . . . . . . Shutdowns 2 | . . . 2 . . . . . . . . Interference 1 | . . . 1 . . . . . . . . Short Circuit 1 | . . . 1 . . . . . . . . Siege Activations . | . . . . . . . . . . . . Robots Corrupted . | . . . . . . . . . . . . Combat Hostiles . | . . . . . . . . . . . . Parts Fried . | . . . . . . . . . . . . Impact Corruptions . | . . . . . . . . . . . . Robots Melted . | . . . . . . . . . . . . Combat Hostiles . | . . . . . . . . . . . . Parts Melted . | . . . . . . . . . . . . Heat Transferred 100 | . . 100 . . . . . . . . . Parts Sabotaged . | . . . . . . . . . . . . Parts Stolen . | . . . . . . . . . . . . Parts Stripped . | . . . . . . . . . . . . Power Chain Reactions 1 | . . 1 . . . . . . . . . Alert | -11 -10 -10 -8 -7 -6 -6 -5 -4 -4 -4 -3 ------- Run | Yrd Mat Sub Mat Fac Fac Ext Fac Fac Upp Upp Res Peak Influence 489 | . 20 . 489 322 278 195 220 253 . . 152 Initial 157 | . . . . 137 157 135 85 107 . . 143 Average 150 | . 15 . 237 234 179 168 154 169 . . 141 Maximum Alert Level 2 | . . . 2 1 1 . 1 1 . . . Low Security (%) 68 | 100 100 . 45 39 78 100 56 62 . . 100 Level 1 26 | . . . 33 60 21 . 43 37 . . . Level 2 4 | . . . 21 . . . . . . . . Level 3 . | . . . . . . . . . . . . Level 4 . | . . . . . . . . . . . . Level 5 . | . . . . . . . . . . . . High Security . | . . . . . . . . . . . . Max Security . | . . . . . . . . . . . . Squads Dispatched 7 | . . . 2 1 2 . 1 . . . 1 Investigation . | . . . . . . . . . . . . Extermination 1 | . . . . 1 . . . . . . . Reinforcement 6 | . . . 2 . 2 . 1 . . . 1 Assault . | . . . . . . . . . . . . Garrison . | . . . . . . . . . . . . Intercept . | . . . . . . . . . . . . Searches Triggered . | . . . . . . . . . . . . Construction Impeded . | . . . . . . . . . . . . Haulers Reinforced . | . . . . . . . . . . . . Active Scanning Responses . | . . . . . . . . . . . . Cargo Convoy Interrupts . | . . . . . . . . . . . . Stealth | -11 -10 -10 -8 -7 -6 -6 -5 -4 -4 -4 -3 --------- Run | Yrd Mat Sub Mat Fac Fac Ext Fac Fac Upp Upp Res Distress Signals 1 | . . . 1 . . . . . . . . Communications Jammed . | . . . . . . . . . . . . Distress Signals . | . . . . . . . . . . . . Times Spotted 87 | . 1 2 26 4 9 10 6 7 10 . 12 Peak Tracking Total 11 | . 1 2 9 3 7 9 2 4 7 . 11 Tactical Retreats 7 | . . . 1 1 3 . . 1 1 . . Traps | -11 -10 -10 -8 -7 -6 -6 -5 -4 -4 -4 -3 ------- Run | Yrd Mat Sub Mat Fac Fac Ext Fac Fac Upp Upp Res Traps Triggered 3 | . . . . . 2 . 1 . . . . Indirectly . | . . . . . . . . . . . . Trap Hack Attempts . | . . . . . . . . . . . . Triggered . | . . . . . . . . . . . . Disarmed . | . . . . . . . . . . . . Reprogrammed . | . . . . . . . . . . . . Reused . | . . . . . . . . . . . . Traps Extracted . | . . . . . . . . . . . . Installed . | . . . . . . . . . . . . Triggered . | . . . . . . . . . . . . Machines | -11 -10 -10 -8 -7 -6 -6 -5 -4 -4 -4 -3 ---------- Run | Yrd Mat Sub Mat Fac Fac Ext Fac Fac Upp Upp Res Machines Disabled 2 | . . 1 . 1 . . . . . . . Max in Single Turn 1 | . . 1 . 1 . . . . . . . Machines Repaired . | . . . . . . . . . . . . Machines Dismantled . | . . . . . . . . . . . . Machines Sabotaged . | . . . . . . . . . . . . Overloaded Fab Kills . | . . . . . . . . . . . . Hacking | -11 -10 -10 -8 -7 -6 -6 -5 -4 -4 -4 -3 --------- Run | Yrd Mat Sub Mat Fac Fac Ext Fac Fac Upp Upp Res Machines Accessed 3 | . . 1 . . 1 . 1 . . . . Terminals 2 | . . . . . 1 . 1 . . . . Fabricators . | . . . . . . . . . . . . Repair Stations . | . . . . . . . . . . . . Recycling Units . | . . . . . . . . . . . . Scanalyzers . | . . . . . . . . . . . . Garrison Access . | . . . . . . . . . . . . Total Hacks 4 | . . 1 . . 2 . 1 . . . . Successful 3 | . . 1 . . 1 . 1 . . . . Failed 1 | . . . . . 1 . . . . . . Catastrophic . | . . . . . . . . . . . . Database Lockouts . | . . . . . . . . . . . . Manual . | . . . . . . . . . . . . Terminals 3 | . . . . . 2 . 1 . . . . Fabricators . | . . . . . . . . . . . . Repair Stations . | . . . . . . . . . . . . Recycling Units . | . . . . . . . . . . . . Scanalyzers . | . . . . . . . . . . . . Garrison Access . | . . . . . . . . . . . . Terminal Hacks 3 | . . 1 . . 1 . 1 . . . . Open Door 1 | . . . . . 1 . . . . . . Open DSF 1 | . . . . . . . 1 . . . . Derelict Proto ID Bank 1 | . . 1 . . . . . . . . . Fabricator Hacks . | . . . . . . . . . . . . Repair Station Hacks . | . . . . . . . . . . . . Recycling Unit Hacks . | . . . . . . . . . . . . Scanalyzer . | . . . . . . . . . . . . Garrison Access Hacks . | . . . . . . . . . . . . Unauthorized Hacks . | . . . . . . . . . . . . Terminals . | . . . . . . . . . . . . Fabricators . | . . . . . . . . . . . . Repair Stations . | . . . . . . . . . . . . Recycling Units . | . . . . . . . . . . . . Scanalyzers . | . . . . . . . . . . . . Garrison Access . | . . . . . . . . . . . . Data Cores Recovered 1 | . . . 1 . . . . . . . . Used . | . . . . . . . . . . . . Hacking Detections . | . . . . . . . . . . . . Full Trace Events . | . . . . . . . . . . . . Feedback Events . | . . . . . . . . . . . . Feedback Blocked . | . . . . . . . . . . . . Robot Schematics Acquired . | . . . . . . . . . . . . Robots Built . | . . . . . . . . . . . . Authchips . | . . . . . . . . . . . . Time . | . . . . . . . . . . . . Total Robot Build Rating . | . . . . . . . . . . . . Part Schematics Acquired . | . . . . . . . . . . . . Parts Built . | . . . . . . . . . . . . Authchips . | . . . . . . . . . . . . Time . | . . . . . . . . . . . . Total Part Build Rating . | . . . . . . . . . . . . Parts Repaired . | . . . . . . . . . . . . Time . | . . . . . . . . . . . . Parts Recycled . | . . . . . . . . . . . . Recycled Matter . | . . . . . . . . . . . . Retrieved Matter . | . . . . . . . . . . . . Retrieved Components . | . . . . . . . . . . . . Parts Scanalyzed . | . . . . . . . . . . . . Part Schematics Acquired . | . . . . . . . . . . . . Parts Damaged . | . . . . . . . . . . . . Bothacking | -11 -10 -10 -8 -7 -6 -6 -5 -4 -4 -4 -3 ------------ Run | Yrd Mat Sub Mat Fac Fac Ext Fac Fac Upp Upp Res Used RIF Installer . | . . . . . . . . . . . . Robots Hacked . | . . . . . . . . . . . . Non-combat . | . . . . . . . . . . . . Combat . | . . . . . . . . . . . . Robot Hacks Applied . | . . . . . . . . . . . . Relay Couplers Released . | . . . . . . . . . . . . Fabnet Peak Effective % . | . . . . . . . . . . . . Robots Rewired . | . . . . . . . . . . . . Allies Hacked . | . . . . . . . . . . . . Hacks Repelled . | . . . . . . . . . . . . Allies | -11 -10 -10 -8 -7 -6 -6 -5 -4 -4 -4 -3 -------- Run | Yrd Mat Sub Mat Fac Fac Ext Fac Fac Upp Upp Res Total Allies . | . . . . . . . . . . . . Largest Group . | . . . . . . . . . . . . Highest-Rated Group . | . . . . . . . . . . . . Highest-Rated Ally . | . . . . . . . . . . . . Total Orders . | . . . . . . . . . . . . Ally Attacks . | . . . . . . . . . . . . Total Damage . | . . . . . . . . . . . . Kills . | . . . . . . . . . . . . Allies Corrupted . | . . . . . . . . . . . . Allies Melted . | . . . . . . . . . . . . Intel | -11 -10 -10 -8 -7 -6 -6 -5 -4 -4 -4 -3 ------- Run | Yrd Mat Sub Mat Fac Fac Ext Fac Fac Upp Upp Res Robot Analysis Total . | . . . . . . . . . . . . Derelict Logs Recovered . | . . . . . . . . . . . . Drone Launches . | . . . . . . . . . . . . Drone Recoveries . | . . . . . . . . . . . . Exploration | -11 -10 -10 -8 -7 -6 -6 -5 -4 -4 -4 -3 ------------- Run | Yrd Mat Sub Mat Fac Fac Ext Fac Fac Upp Upp Res Turns Passed 2684 | 87 425 596 424 287 156 69 249 185 97 6 103 Spaces Moved 3135 | 50 65 333 471 672 265 198 439 241 246 17 138 Core 119 | 7 . . . . . . . . . . 112 Treads 441 | 43 65 333 . . . . . . . . . Legs . | . . . . . . . . . . . . Wheels . | . . . . . . . . . . . . Hover . | . . . . . . . . . . . . Flight 2575 | . . . 471 672 265 198 439 241 246 17 26 Fastest Speed 34 | 50 160 160 40 34 34 34 40 37 37 37 37 Average Speed 61 | 149 160 160 60 34 56 34 40 52 37 37 61 Slowest Speed 200 | 160 160 160 80 40 86 40 40 80 37 37 200 Overloaded Moves . | . . . . . . . . . . . . Propulsion Burnouts . | . . . . . . . . . . . . Robots Hopped 28 | . . . 6 6 4 2 6 2 2 . . Cave-ins Triggered . | . . . . . . . . . . . . Exploration Rate (%) 20 | 5 13 22 57 20 12 40 15 8 48 4 6 Regions Visited 11 Branch Regions 4 Pre-discovered Areas . | . . . . . . . . . . . . Known Exits Taken . | . . . . . . . . . . . . Unknown Exits Taken 11 | 1 1 1 1 1 1 1 1 1 1 1 . Scrap Searched 2 | . . . . . . . . . 2 . . Spaces Dug . | . . . . . . . . . . . . Terrain Destroyed 37 | . . 3 24 5 1 . . 2 . . 2 Melee . | . . . . . . . . . . . . Projectile 34 | . . . 24 5 1 . . 2 . . 2 AOE 3 | . . 3 . . . . . . . . . Terrain Rammed . | . . . . . . . . . . . . Walls Destroyed . | . . . . . . . . . . . . Machines Disabled . | . . . . . . . . . . . . Actions | -11 -10 -10 -8 -7 -6 -6 -5 -4 -4 -4 -3 --------- Run | Yrd Mat Sub Mat Fac Fac Ext Fac Fac Upp Upp Res Total 3680 | 62 381 361 541 701 265 196 486 273 246 16 152 Wait 339 | . 308 . 5 1 . . 19 . . . 6 Move 3069 | 49 64 332 458 659 256 193 427 236 241 16 138 Hop 27 | . . . 6 6 4 2 5 2 2 . . Pick Up 35 | 7 3 4 6 6 1 . 2 3 . . 3 Fast Attach . | . . . . . . . . . . . . Attach 37 | 6 1 . 13 4 2 1 4 3 . . 3 Detach 16 | . . 1 9 1 1 . 2 2 . . . Swap 6 | . 3 1 1 1 . . . . . . . Drop 12 | . . 4 5 1 . . 1 1 . . . Fire 139 | . 2 19 38 22 1 . 26 26 3 . 2 Melee . | . . . . . . . . . . . . Ram . | . . . . . . . . . . . . Kick . | . . . . . . . . . . . . Crush . | . . . . . . . . . . . . Escape Stasis . | . . . . . . . . . . . . Rewire . | . . . . . . . . . . . . Trap . | . . . . . . . . . . . . Miscellaneous . | . . . . . . . . . . . . Route ------- -11/Scrapyard -10/Materials -10/Subcaves -8/Materials -7/Factory -6/Factory -6/Extension (discovered 2 exits: *Fac / [*Cet]) -5/Factory -4/Factory -4/Upper Caves -4/Upper Caves -3/Research History --------- Turn | Location | Event 15 | -11/Scrapyard | Discovered new exit (range 14) 88 | -11/Scrapyard | Entered Materials 307 | -10/Materials | Build established: Mutant 470 | -10/Materials | Discovered new exit (range 8) 513 | -10/Materials | Entered Subcaves 535 | -10/Subcaves | Shifting Twisted Machinery released Slug Cannon 580 | -10/Subcaves | Discovered new exit (range 9) 584 | -10/Subcaves | Shifting Twisted Machinery released Barrage Gun 826 | -10/Subcaves | A swath of the cavern ceiling suddenly collapsed 942 | -10/Subcaves | Visited 4L-MR0's lab 960 | -10/Subcaves | Found Flightbrick 1109 | -10/Subcaves | Entered Materials 1109 | -8/Materials | Evolved 4 slots: Power x2, Propulsion x2 1112 | -8/Materials | Attached Flightbrick, gained temporary slots: Utility x3 1521 | -8/Materials | Discovered new exit (range 15) 1529 | -8/Materials | Found Prototype Launcher 1530 | -8/Materials | Identified Rocket Array 1533 | -8/Materials | Entered Factory 1533 | -7/Factory | Evolved 2 slots: Propulsion x1, Utility x1 1815 | -7/Factory | Discovered new exit (range 11) 1820 | -7/Factory | Entered another Factory area 1820 | -6/Factory | Evolved 2 slots: Power x1, Utility x1 1957 | -6/Factory | Lost 3 parts (2p1u) 1974 | -6/Factory | Discovered new exit (range 6) 1976 | -6/Factory | Entered Extension 2005 | -6/Extension | Spotted B-75 Beast 2008 | -6/Extension | Spotted B-75 Beast 2039 | -6/Extension | Discovered new exit (range 16) 2040 | -6/Extension | Discovered new exit (range 15) 2045 | -6/Extension | Entered Factory 2045 | -5/Factory | Evolved 2 slots: Propulsion x1, Utility x1 2260 | -5/Factory | Discovered new exit (range 12) 2294 | -5/Factory | Entered another Factory area 2294 | -4/Factory | Evolved 2 slots: Propulsion x1, Weapon x1 2474 | -4/Factory | Discovered new exit (range 16) 2479 | -4/Factory | Entered Upper Caves 2572 | -4/Upper Caves | Build established: Infiltrator-Mutant 2573 | -4/Upper Caves | Discovered new exit (range 11) 2576 | -4/Upper Caves | Entered another Upper Caves area 2579 | -4/Upper Caves | Discovered new exit (range 10) 2582 | -4/Upper Caves | Entered Research 2582 | -3/Research | Evolved 2 slots: Utility x1, Weapon x1 2600 | -3/Research | Released all parts (7) 2644 | -3/Research | Spotted B-86 Titan 2668 | -3/Research | Core integrity fell below 50% 2682 | -3/Research | Core integrity fell below 20% 2685 | -3/Research | Destroyed by S-43 Plague with Heavy Machine Gun Last Messages --------------- 02641_ O-24 Administrator: "IFF HANDSHAKE FAILED. SECURING TERMINAL." 02645_ Knocked back. 02645_ Slug penetrates Wall. 02645_ Penetrated by Slug. 02646_ ALERT: Hostiles spotted, dispatching reinforcements to Terminal R014. 02653_ Slug penetrates Wall. 02657_ Knocked back. 02659_ Slug penetrates Wall. 02659_ Penetrated by Slug. 02661_ Slug penetrates Wall. 02664_ Penetrated by Slug. 02666_ Graviton Restrictor disabled. 02667_ Penetrated by Slug. 02670_ Slug penetrates Wall. 02670_ Penetrated by Slug. 02672_ Slug penetrates Wall. 02675_ Penetrated by Slug. 02676_ Slug penetrates Wall. 02679_ Penetrated by Slug. Map ----- +----------------------------------------------------+ | ?????????????????????????????????????????????????? | | ?????????????????????????????????????????????????? | | ?????????????????????????????????????????????????? | | ?????????????????????????????????????????????????? | | ?????????????????????????????????????????????????? | | ?????????????????????????????????????????????????? | | ?????????????????????????????????????????????????? | | ?????????????????????????????????????????????????? | | ?????????????????????????????????????????????????? | | ?????????????????????????????????????????????????? | | ?????????????????????????????????????????????????? | | ?????????????????????????????????????????????????? | | ?????????????????????????????????????????????????? | | ?????????????????????????????????????????????????? | | ???????????????#???????##????????????????????????? | | ???????????????# ????? #????????????????????????? | | ???????????????? ???? #????????????????????????? | | ???????????????? """" #????????????????????????? | | ????????????????? """" ?????????????????????????? | | ????????????????? """" ############?????????????? | | ??????????????????"""" ?# ] #?????????????? | | ?????????????????? ?# #?????????????? | | ??????????????????? ??# #?????????????? | | ??????????????????? ??# #?????????????? | | ?? #################+#### #?????????????? | | ?? ;@ #?????????????? | | ? # #?????????????? | | ? ; #?????????????? | | ? h # s #?????????????? | | ????#########h ###+#### ss #?????????????? | | ????????????# #??????# s #?????????????? | | ????????????# #??????# #?????????????? | | ????????????# #??????# s#?????????????? | | ????????????# #??????# #?????????????? | | ????????????# #??????? #?????????????? | | ????????????# #???????###########?????????????? | | ????????????# #???????????????????????????????? | | ????????????# #???????????????????????????????? | | ????????????# #???? #?????????????????????????? | | ????????????# #?? #?????????????????????????? | | ????????????# # ] #?????????????????????????? | | ????????????# + #?????????????????????????? | | ????????????# #######?????????????????????????? | | ????????????# #???????????????????????????????? | | ????????????# #???????????????????????????????? | | ????????????# #???????????????????????????????? | | ? ????????# #???????????????????????????????? | | ? ???????# #???????????????????????????????? | | ??? ??????# #???????????????????????????????? | | ???? ????# #???????????????????????????????? | +----------------------------------------------------+ Best States ------------- Heat Dissipation 46 Energy Generation 36 Energy Capacity 415 Matter Stores 300 Matter Capacity 300 Sight Range 16 Terrain Scan Density 10 ECM Strength 2 Jamming Range 14 Armor Coverage 800 Propulsion Shielding 66 Evasion (%) 63 Recoil Reduction 2 Item Schematics ----------------- None Robot Schematics ------------------ None Fabricated ------------ Nothing Alien Tech Used ----------------- None Achievements -------------- Leap Before You Look Challenges ------------ None Game ------ Seed ThiefComponentBank Manual? 0 Play Time 00:28:15 Cumulative 98.3 hours Start 2024.04.05 @ 10:41:26 End 2024.04.29 @ 21:38:21 Sessions 5 Manual Loads 0 Difficulty Rogue Special Mode None Game No. 120 Rogue 7 Adventurer 1 Explorer 112 Win Type - Total 3 Types 2/0/1/0/0/0/0/0/0 Lore% 57 Gallery% 66 Achievement% 67 Wizard Run 0 Options --------- Layout 0 ASCII 0 Keyboard 1 Movement Numpad Keybinds 0 Fullscreen 2 Font 18/SmallcapsGlow Map View 76x50 Zoom Use 0% Tactical HUD 1 Map Filters NONE Filters NONE Steam 1 RUN: 593355a5-cb7e-4b35-bb38-097c7865a3a1